[Event "5th EKA IIFL Investment 2019"]
[Site "Mumbai"]
[Date "2020.01.06"]
[Round "8.36"]
[White "Varun, V."]
[Black "Audi Ameya"]
[Result "1-0"]
[ECO "A45"]
[WhiteElo "2256"]
[BlackElo "2360"]
[Annotator "RC"]
[PlyCount "129"]
[EventDate "2019.12.30"]
[EventType "swiss"]
[EventCountry "IND"]
[SourceTitle "playchess.com"]
[Source "ChessBase"]
[SourceQuality "1"]
[TimeControl "40/5400+30:1800+30"]

1. d4 {[%emt 0:11:50]} Nf6 {[%emt 0:00:00]} 2. Bf4 {[%emt 0:00:07]} b6 {[%emt 0:00:00]} 3. e3 {[%emt 0:00:32]} Bb7 {[%emt 0:00:00]} 4. Nf3 {[%emt 0:00:05]} d6 {[%emt 0:00:03]} 5. h3 {[%emt 0:00:26]} Nbd7 {[%emt 0:00:05]} 6. Be2 {[%emt 0:00:05]} g6 {[%emt 0:00:07]} 7. O-O {[%emt 0:00:06]} Bg7 {[%emt 0:00:02]} 8. a4 {[%emt 0:00:26]} a6 {[%emt 0:13:25]} 9. c3 {[%emt 0:00:14]} O-O {[%emt 0:00:09]} 10. Nbd2 {[%emt 0:00:02]} Re8 {[%emt 0:01:14]} 11. Bh2 {[%emt 0:00:13]} e5 {[%emt 0:06:34]} 12. dxe5 {[%emt 0:00:48]} dxe5 {[%emt 0:03:11]} 13. Nc4 {[%emt 0:00:09]} Ne4 {[%emt 0:00:40]} 14. Nfd2 {[%emt 0:00:19]} Nxd2 {[%emt 0:04:43]} 15. Qxd2 {[%emt 0:00:07]} Qg5 {[%emt 0:01:13]} 16. f3 {[%emt 0:03:06]} Nc5 {[%emt 0:02:07]} 17. Qc2 {[%emt 0:00:58]} Bc6 {[%emt 0:09:07]} 18. b3 {[%emt 0:01:36]} Qe7 {[%emt 0:11:28]} 19. e4 {[%emt 0:02:05]} Ne6 {[%emt 0:04:33]} 20. Rfd1 {[%emt 0:02:53]} Nf4 {[%emt 0:04:35]} 21. Bf1 {[%emt 0:08:06]} Qg5 {[%emt 0:02:10]} 22. Kh1 {[%emt 0:01:44]} Nh5 {[%emt 0:00:04]} 23. Qf2 {[%emt 0:04:44]} Qf6 {[%emt 0:05:37]} 24. Ne3 {[%emt 0:03:31]} Nf4 {[%emt 0:02:18]} 25. Bc4 {[%emt 0:02:49]} Bf8 {[%emt 0:03:01]} 26. b4 {[%emt 0:04:42]} b5 {[%emt 0:02:54]} 27. Bd5 {[%emt 0:12:31]} h5 {[%emt 0:03:50]} 28. Bxc6 {[%emt 0:01:06]} Qxc6 {[%emt 0:00:03]} 29. Bxf4 {[%emt 0:00:09]} exf4 {[%emt 0:00:04]} 30. Nd5 {[%emt 0:00:07]} bxa4 {[%emt 0:07:33]} 31. Qa2 {[%emt 0:03:09]} Red8 {[%emt 0:00:12]} 32. Rd4 {[%emt 0:02:52]} Rab8 {[%emt 0:04:48]} 33. Rc4 {[%emt 0:00:59]} Qe6 {[%emt 0:01:53]} 34. Rxc7 {[%emt 0:01:43]} a5 {[%emt 0:00:33]} 35. Qxa4 {[%emt 0:01:33]} axb4 {[%emt 0:00:02]} 36. cxb4 {[%emt 0:00:09]} Qe5 {[%emt 0:01:27]} 37. Rac1 {[%emt 0:03:13]} Bd6 {[%emt 0:01:42]} 38. R7c6 {[%emt 0:01:46]} Ra8 {[%emt 0:01:27]} 39. Qc2 {[%emt 0:01:49]} Rdb8 {[%emt 0:00:55]} 40. Nb6 {[%emt 0:00:00]} Rxb6 {[%emt 0:00:00]} 41. Rxb6 {[%emt 0:01:14]} Ra1 {[%emt 0:03:34]} 42. Rd1 {[%emt 0:03:14]} Be7 {[%emt 0:00:39]} 43. Rb7 {[%emt 0:05:27]} Qd4 {[%emt 0:01:15]} 44. Rd7 {[%emt 0:00:31]} Rxd1+ {[%emt 0:00:16]} 45. Qxd1 {[%emt 0:00:06]} Qxb4 {[%emt 0:00:03]} 46. Rc7 {[%emt 0:02:22]} Bc5 {[%emt 0:03:03]} 47. Rd7 {[%emt 0:03:41]} Qc3 {[%emt 0:02:07]} 48. Rd3 {[%emt 0:01:19]} Qb2 {[%emt 0:00:15]} 49. Rd2 {[%emt 0:00:32]} Qa3 {[%emt 0:01:01]} 50. Qb1 {[%emt 0:01:10]} Bb4 {[%emt 0:04:54]} 51. Rd3 {[%emt 0:01:14]} Qa5 {[%emt 0:00:38]} 52. Qc1 {[%emt 0:00:44]} Qg5 {[%emt 0:03:37]} 53. Rd5 {[%emt 0:02:58]} Qh4 {[%emt 0:01:48]} 54. Rb5 {[%emt 0:01:21]} Be7 {[%emt 0:01:44]} 55. e5 {[%emt 0:01:35]} Kg7 {[%emt 0:03:20]} 56. Rb8 {[%emt 0:03:00]} Kh7 {[%emt 0:00:46]} 57. Qa1 {[%emt 0:01:33]} Kg7 {[%emt 0:02:08]} 58. Rc8 {[%emt 0:04:05]} Kh7 {[%emt 0:00:26]} 59. Qc1 {[%emt 0:02:09]} Ba3 {[%emt 0:01:14]} 60. Qd2 {[%emt 0:00:42]} Bb2 {[%emt 0:00:21]} 61. Rc7 {[%emt 0:01:49]} Kg8 {[%emt 0:02:00]} 62. Qe2 {[%emt 0:00:20]} Qd8 {[%emt 0:00:57]} 63. Qc4 {[%emt 0:01:19]} Kg7 {[%emt 0:00:45]} 64. Qxf7+ {[%emt 0:00:18]} Kh6 {[%emt 0:00:04]} 65. Qxf4+ {[%emt 0:01:27]} 1-0

[Event "5th EKA IIFL Investment 2019"]
[Site "Mumbai"]
[Date "2020.01.06"]
[Round "8.37"]
[White "Kaustuv, Kundu"]
[Black "Wagh Suyog"]
[Result "1/2-1/2"]
[ECO "A30"]
[WhiteElo "2349"]
[BlackElo "2219"]
[Annotator "RC"]
[PlyCount "106"]
[EventDate "2019.12.30"]
[EventType "swiss"]
[EventCountry "IND"]
[SourceTitle "playchess.com"]
[Source "ChessBase"]
[SourceQuality "1"]
[TimeControl "40/5400+30:1800+30"]

1. Nf3 {[%emt 0:00:00]} c5 {[%emt 0:00:00]} 2. c4 {[%emt 0:00:00]} b6 {[%emt 0:01:34]} 3. g3 {[%emt 0:02:14]} Bb7 {[%emt 0:00:07]} 4. Bg2 {[%emt 0:00:06]} Nf6 {[%emt 0:01:03]} 5. O-O {[%emt 0:00:10]} e6 {[%emt 0:00:04]} 6. Nc3 {[%emt 0:00:13]} Be7 {[%emt 0:00:19]} 7. d4 {[%emt 0:00:13]} cxd4 {[%emt 0:00:04]} 8. Qxd4 {[%emt 0:00:05]} d6 {[%emt 0:00:05]} 9. Rd1 {[%emt 0:00:50]} a6 {[%emt 0:00:07]} 10. b3 {[%emt 0:08:58]} Nbd7 {[%emt 0:00:42]} 11. Bb2 {[%emt 0:01:20]} O-O {[%emt 0:00:33]} 12. e4 {[%emt 0:03:27]} Qc7 {[%emt 0:01:12]} 13. Qe3 {[%emt 0:00:58]} Rac8 {[%emt 0:01:26]} 14. Nd4 {[%emt 0:00:47]} Rfe8 {[%emt 0:02:05]} 15. h3 {[%emt 0:01:28]} Bf8 {[%emt 0:03:18]} 16. Re1 {[%emt 0:03:58]} Qb8 {[%emt 0:02:21]} 17. Rad1 {[%emt 0:00:51]} Rcd8 {[%emt 0:12:44]} 18. Qe2 {[%emt 0:06:14]} Qa8 {[%emt 0:08:59]} 19. Kh2 {[%emt 0:00:39]} Qb8 20. Nc2 {[%emt 0:04:33]} g6 {[%emt 0:41:41]} 21. Ne3 {[%emt 0:04:40]} Bg7 {[%emt 0:03:46]} 22. b4 {[%emt 0:04:14]} h5 {[%emt 0:04:21]} 23. Kg1 {[%emt 0:05:36]} h4 {[%emt 0:02:48]} 24. g4 {[%emt 0:09:03]} g5 {[%emt 0:00:02]} 25. Qc2 {[%emt 0:03:22]} Ne5 {[%emt 0:00:54]} 26. Na4 {[%emt 0:03:17]} Bc6 {[%emt 0:03:28]} 27. Bd4 {[%emt 0:09:43]} Nfd7 {[%emt 0:00:35]} 28. Nc3 {[%emt 0:03:51]} Ng6 {[%emt 0:02:36]} 29. Bxg7 {[%emt 0:00:07]} Kxg7 {[%emt 0:00:05]} 30. b5 {[%emt 0:04:44]} Bb7 {[%emt 0:01:32]} 31. Qb2 {[%emt 0:01:31]} Nde5 {[%emt 0:01:17]} 32. Rd4 {[%emt 0:01:09]} axb5 {[%emt 0:01:23]} 33. Nxb5 {[%emt 0:00:21]} Bc6 {[%emt 0:00:15]} 34. Red1 {[%emt 0:01:30]} Bxb5 {[%emt 0:00:25]} 35. cxb5 {[%emt 0:00:09]} f6 {[%emt 0:00:31]} 36. Qb4 {[%emt 0:02:36]} Nf4 {[%emt 0:02:34]} 37. Rxd6 {[%emt 0:00:23]} Rxd6 {[%emt 0:00:16]} 38. Qxd6 {[%emt 0:00:36]} Qa7 {[%emt 0:01:51]} 39. a3 {[%emt 0:07:32]} Rc8 {[%emt 0:00:52]} 40. Kh2 {[%emt 0:00:00]} Qb7 {[%emt 0:00:00]} 41. Rd4 {[%emt 0:04:54]} Nf7 {[%emt 0:19:11]} 42. Qb4 {[%emt 0:03:08]} Ne5 {[%emt 0:01:57]} 43. Qd6 {[%emt 0:02:51]} Kf7 {[%emt 0:04:30]} 44. a4 {[%emt 0:02:23]} Qc7 {[%emt 0:02:24]} 45. Qxc7+ {[%emt 0:01:06]} Rxc7 {[%emt 0:00:01]} 46. Rd6 {[%emt 0:00:45]} Rb7 {[%emt 0:01:02]} 47. Rd8 {[%emt 0:00:34]} Ke7 {[%emt 0:01:41]} 48. Rh8 {[%emt 0:01:31]} Ra7 {[%emt 0:01:23]} 49. Nc4 {[%emt 0:03:23]} Rxa4 {[%emt 0:00:56]} 50. Rh7+ {[%emt 0:08:08]} Nf7 {[%emt 0:00:34]} 51. Nxb6 {[%emt 0:00:07]} Rd4 {[%emt 0:02:23]} 52. e5 {[%emt 0:00:59]} fxe5 {[%emt 0:01:06]} 53. Bc6 {[%emt 0:01:49]} Rd2 {[%emt 0:00:53]} 1/2-1/2

[Event "5th EKA IIFL Investment 2019"]
[Site "Mumbai"]
[Date "2020.01.06"]
[Round "8.41"]
[White "Kulkarni, Vinayak"]
[Black "Senthil, Maran K"]
[Result "1-0"]
[ECO "D45"]
[WhiteElo "2167"]
[BlackElo "2305"]
[Annotator "ChessBase"]
[PlyCount "65"]
[EventDate "2019.12.30"]
[EventType "swiss"]
[EventCountry "IND"]
[SourceTitle "playchess.com"]
[Source "ChessBase"]
[SourceQuality "1"]
[TimeControl "40/5400+30:1800+30"]

1. d4 {[%emt 0:07:39]} d5 {[%emt 0:00:00]} 2. c4 {[%emt 0:00:06]} c6 {[%emt 0:00:00]} 3. Nc3 {[%emt 0:00:09]} Nf6 {[%emt 0:00:00]} 4. e3 {[%emt 0:00:05]} e6 {[%emt 0:00:04]} 5. Nf3 {[%emt 0:00:06]} Nbd7 {[%emt 0:00:06]} 6. Qc2 {[%emt 0:00:07]} Bd6 {[%emt 0:00:02]} 7. b3 {[%emt 0:00:12]} O-O {[%emt 0:00:08]} 8. Be2 {[%emt 0:00:06]} b6 {[%emt 0:00:08]} 9. O-O {[%emt 0:00:09]} Bb7 {[%emt 0:00:05]} 10. Bb2 {[%emt 0:00:12]} Qe7 {[%emt 0:00:07]} 11. Rad1 {[%emt 0:00:10]} Rad8 {[%emt 0:00:06]} 12. Rfe1 {[%emt 0:00:07]} Rfe8 {[%emt 0:00:05]} 13. Bf1 {[%emt 0:00:09]} e5 {[%emt 0:00:12]} 14. dxe5 {[%emt 0:00:54]} Nxe5 {[%emt 0:00:04]} 15. Nd4 {[%emt 0:00:57]} dxc4 {[%emt 0:00:09]} 16. Nf5 {[%emt 0:00:59]} Qe6 {[%emt 0:00:06]} 17. Rxd6 {[%emt 0:01:15]} Rxd6 {[%emt 0:00:15]} 18. Nxd6 {[%emt 0:00:22]} Qxd6 {[%emt 0:00:02]} 19. Rd1 {[%emt 0:02:58]} cxb3 {[%emt 0:03:26]} 20. axb3 {[%emt 0:00:38]} Qe7 {[%emt 0:02:44]} 21. Ne4 {[%emt 0:11:34]} Nd5 {[%emt 0:06:24]} 22. Ng3 {[%emt 0:06:33]} g6 {[%emt 0:19:32]} 23. Qd2 {[%emt 0:18:09]} Qb4 {[%emt 0:03:46]} 24. Qxb4 {[%emt 0:07:28]} Nxb4 {[%emt 0:00:23]} 25. Ne4 {[%emt 0:01:24]} Ng4 {[%emt 0:21:43]} 26. h3 {[%emt 0:02:55]} Nh6 {[%emt 0:02:29]} 27. Nf6+ {[%emt 0:04:12]} Kf8 {[%emt 0:00:15]} 28. Nxe8 {[%emt 0:01:09]} Kxe8 {[%emt 0:01:28]} 29. e4 {[%emt 0:01:29]} Ke7 {[%emt 0:05:03]} 30. Bc1 {[%emt 0:03:01]} Ng8 {[%emt 0:00:18]} 31. Bc4 {[%emt 0:00:30]} Bc8 {[%emt 0:00:40]} 32. Bg5+ {[%emt 0:00:43]} f6 {[%emt 0:00:06]} 33. Bf4 {[%emt 0:01:14]} 1-0

[Event "5th EKA IIFL Investment 2019"]
[Site "Mumbai"]
[Date "2020.01.06"]
[Round "8.42"]
[White "Kavinda, Akila"]
[Black "Vantika Agrawal"]
[Result "1/2-1/2"]
[ECO "A05"]
[WhiteElo "2022"]
[BlackElo "2287"]
[Annotator "RC"]
[PlyCount "158"]
[EventDate "2019.12.30"]
[EventType "swiss"]
[EventCountry "IND"]
[SourceTitle "playchess.com"]
[Source "ChessBase"]
[SourceQuality "1"]
[TimeControl "40/5400+30:1800+30"]

1. Nf3 {[%emt 0:00:00]} Nf6 {[%emt 0:01:30]} 2. g3 {[%emt 0:00:00]} g6 {[%emt 0:00:34]} 3. Bg2 {[%emt 0:01:07]} Bg7 {[%emt 0:00:04]} 4. O-O {[%emt 0:00:06]} O-O {[%emt 0:00:04]} 5. d4 {[%emt 0:00:13]} d6 {[%emt 0:00:07]} 6. b3 {[%emt 0:00:04]} e5 {[%emt 0:00:31]} 7. dxe5 {[%emt 0:00:42]} dxe5 {[%emt 0:00:07]} 8. Ba3 {[%emt 0:02:11]} Qxd1 {[%emt 0:00:14]} 9. Rxd1 {[%emt 0:00:05]} Re8 {[%emt 0:00:04]} 10. Nc3 {[%emt 0:02:39]} e4 {[%emt 0:00:50]} 11. Nd4 {[%emt 0:08:49]} a6 {[%emt 0:01:14]} 12. Na4 {[%emt 0:07:45]} Nbd7 {[%emt 0:24:44]} 13. c4 {[%emt 0:01:33]} e3 {[%emt 0:07:30]} 14. f3 {[%emt 0:04:20]} Nf8 {[%emt 0:10:04]} 15. Rac1 {[%emt 0:08:19]} Ne6 16. Nxe6 {[%emt 0:14:01]} Bxe6 {[%emt 0:08:57]} 17. Nc5 {[%emt 0:00:19]} Bc8 {[%emt 0:03:35]} 18. Bb2 {[%emt 0:02:31]} b6 {[%emt 0:13:57]} 19. f4 {[%emt 0:08:23]} Rb8 {[%emt 0:01:15]} 20. Bxf6 {[%emt 0:22:42]} Bxf6 {[%emt 0:00:50]} 21. Nd7 {[%emt 0:00:05]} Bxd7 {[%emt 0:00:35]} 22. Rxd7 {[%emt 0:00:06]} Rbd8 {[%emt 0:06:45]} 23. Rxc7 {[%emt 0:01:53]} Rd2 {[%emt 0:00:32]} 24. Kf1 {[%emt 0:03:53]} Rxa2 {[%emt 0:01:39]} 25. Bd5 {[%emt 0:01:19]} Re7 {[%emt 0:00:41]} 26. Rc8+ {[%emt 0:03:03]} Kg7 {[%emt 0:00:07]} 27. c5 {[%emt 0:01:20]} bxc5 {[%emt 0:02:19]} 28. R1xc5 {[%emt 0:01:08]} Ra1+ {[%emt 0:13:50]} 29. Kg2 {[%emt 0:00:28]} Ra2 {[%emt 0:00:42]} 30. Bc4 {[%emt 0:03:15]} Ra3 {[%emt 0:00:46]} 31. R5c7 {[%emt 0:00:55]} a5 {[%emt 0:00:32]} 32. Rxe7 {[%emt 0:00:43]} Bxe7 {[%emt 0:00:02]} 33. Rc7 {[%emt 0:00:13]} Kf8 {[%emt 0:00:30]} 34. Ra7 {[%emt 0:01:56]} h5 {[%emt 0:00:45]} 35. Kf3 {[%emt 0:00:27]} Ra1 {[%emt 0:00:32]} 36. Ra8+ {[%emt 0:00:31]} Kg7 {[%emt 0:00:04]} 37. Kg2 {[%emt 0:00:46]} h4 {[%emt 0:01:04]} 38. Ra7 {[%emt 0:00:17]} Kf8 {[%emt 0:00:23]} 39. g4 {[%emt 0:00:43]} f5 {[%emt 0:00:54]} 40. g5 {[%emt 0:00:00]} Rd1 {[%emt 0:00:00]} 41. Rxa5 {[%emt 0:09:19]} Rd4 {[%emt 0:03:51]} 42. Ra8+ {[%emt 0:01:14]} Kg7 {[%emt 0:02:04]} 43. Ra7 {[%emt 0:07:41]} Kf8 {[%emt 0:00:12]} 44. Ra8+ {[%emt 0:00:34]} Kg7 {[%emt 0:00:11]} 45. Re8 {[%emt 0:00:19]} Bc5 {[%emt 0:07:18]} 46. Rg8+ {[%emt 0:01:01]} Kh7 {[%emt 0:00:13]} 47. Rc8 {[%emt 0:00:04]} Ba3 {[%emt 0:02:08]} 48. Ra8 {[%emt 0:04:55]} Bc5 {[%emt 0:03:29]} 49. Ra4 {[%emt 0:07:08]} Kg7 {[%emt 0:03:01]} 50. Bd3 {[%emt 0:02:15]} Rxa4 {[%emt 0:02:46]} 51. bxa4 {[%emt 0:00:03]} Bb4 {[%emt 0:00:20]} 52. h3 {[%emt 0:01:23]} Ba5 {[%emt 0:00:59]} 53. Kf3 {[%emt 0:00:07]} Bd2 {[%emt 0:00:21]} 54. Bc4 {[%emt 0:00:34]} Kf8 {[%emt 0:00:29]} 55. Bb5 {[%emt 0:00:13]} Kf7 {[%emt 0:00:18]} 56. Bc6 {[%emt 0:00:21]} Kf8 {[%emt 0:00:22]} 57. a5 {[%emt 0:00:48]} Bxa5 {[%emt 0:00:06]} 58. Kxe3 {[%emt 0:00:03]} Bc7 {[%emt 0:03:29]} 59. Kf3 {[%emt 0:00:05]} Kg7 {[%emt 0:03:10]} 60. e4 {[%emt 0:01:38]} fxe4+ {[%emt 0:00:06]} 61. Bxe4 {[%emt 0:00:04]} Ba5 {[%emt 0:01:10]} 62. Kg4 {[%emt 0:00:07]} Be1 {[%emt 0:00:20]} 63. Bb1 {[%emt 0:00:06]} Bf2 {[%emt 0:00:58]} 64. Bc2 {[%emt 0:00:51]} Be1 {[%emt 0:00:04]} 65. Ba4 {[%emt 0:00:03]} Bf2 {[%emt 0:00:24]} 66. Bb5 {[%emt 0:00:05]} Be1 {[%emt 0:00:04]} 67. Bc6 {[%emt 0:00:03]} Bf2 {[%emt 0:00:04]} 68. Bd7 {[%emt 0:00:05]} Be1 {[%emt 0:00:06]} 69. Bc8 {[%emt 0:00:06]} Bf2 {[%emt 0:00:13]} 70. Bb7 {[%emt 0:00:06]} Be1 {[%emt 0:00:07]} 71. Ba6 {[%emt 0:00:05]} Bf2 {[%emt 0:00:03]} 72. Bd3 {[%emt 0:00:04]} Be1 {[%emt 0:00:03]} 73. Bxg6 {[%emt 0:04:11]} Kxg6 {[%emt 0:00:05]} 74. f5+ {[%emt 0:00:03]} Kg7 {[%emt 0:00:55]} 75. Kh5 {[%emt 0:00:07]} Bf2 {[%emt 0:01:00]} 76. g6 {[%emt 0:01:41]} Kf6 {[%emt 0:00:29]} 77. Kh6 {[%emt 0:00:56]} Bd4 {[%emt 0:00:04]} 78. Kh5 {[%emt 0:01:00]} Kxf5 {[%emt 0:00:29]} 79. Kxh4 {[%emt 0:00:03]} Kxg6 {[%emt 0:00:04]} 1/2-1/2

[Event "5th EKA IIFL Investment 2019"]
[Site "Mumbai"]
[Date "2020.01.06"]
[Round "8.43"]
[White "Priyanka, K."]
[Black "Mithil, Ajgaonkar"]
[Result "1-0"]
[ECO "B11"]
[WhiteElo "2124"]
[BlackElo "2278"]
[Annotator "RC"]
[PlyCount "113"]
[EventDate "2019.12.30"]
[EventType "swiss"]
[EventCountry "IND"]
[SourceTitle "playchess.com"]
[Source "ChessBase"]
[SourceQuality "1"]
[TimeControl "40/5400+30:1800+30"]

1. e4 {[%emt 0:00:00]} c6 {[%emt 0:00:00]} 2. Nf3 {[%emt 0:00:15]} d5 {[%emt 0:00:00]} 3. Nc3 {[%emt 0:00:21]} Bg4 {[%emt 0:00:00]} 4. h3 {[%emt 0:00:19]} Bxf3 {[%emt 0:00:02]} 5. Qxf3 {[%emt 0:00:07]} e6 {[%emt 0:00:04]} 6. Be2 {[%emt 0:00:23]} Nd7 {[%emt 0:12:08]} 7. d4 {[%emt 0:04:41]} dxe4 {[%emt 0:02:19]} 8. Nxe4 {[%emt 0:00:14]} Ngf6 {[%emt 0:00:04]} 9. O-O {[%emt 0:00:44]} Nxe4 {[%emt 0:08:04]} 10. Qxe4 {[%emt 0:01:44]} Be7 {[%emt 0:00:04]} 11. Rd1 {[%emt 0:06:05]} O-O {[%emt 0:03:01]} 12. a4 {[%emt 0:03:01]} a5 {[%emt 0:03:58]} 13. c4 {[%emt 0:15:28]} Nf6 {[%emt 0:07:38]} 14. Qf3 {[%emt 0:07:22]} Qb6 {[%emt 0:05:38]} 15. Be3 {[%emt 0:06:51]} Rad8 {[%emt 0:10:29]} 16. d5 {[%emt 0:19:18]} Bc5 {[%emt 0:00:46]} 17. Bxc5 {[%emt 0:12:16]} Qxc5 {[%emt 0:00:03]} 18. dxc6 {[%emt 0:05:26]} bxc6 {[%emt 0:00:20]} 19. b3 {[%emt 0:00:39]} h6 {[%emt 0:00:02]} 20. Rd3 {[%emt 0:01:33]} Rxd3 {[%emt 0:05:33]} 21. Qxd3 {[%emt 0:00:30]} Qb6 {[%emt 0:06:18]} 22. Bf3 {[%emt 0:04:20]} Rd8 {[%emt 0:02:15]} 23. Qc3 {[%emt 0:00:22]} Qc5 {[%emt 0:05:37]} 24. Re1 Rb8 {[%emt 0:15:41]} 25. Re5 {[%emt 0:04:22]} Qa3 {[%emt 0:00:08]} 26. Re3 {[%emt 0:03:17]} Qc5 {[%emt 0:06:49]} 27. Re5 {[%emt 0:00:11]} Qd6 {[%emt 0:01:58]} 28. Rxa5 {[%emt 0:00:48]} Qa3 {[%emt 0:00:23]} 29. Bxc6 {[%emt 0:01:43]} Rxb3 {[%emt 0:00:38]} 30. Ra8+ {[%emt 0:00:55]} Kh7 {[%emt 0:00:01]} 31. Qd4 {[%emt 0:00:34]} Qc1+ {[%emt 0:01:16]} 32. Kh2 {[%emt 0:00:05]} Qe1 {[%emt 0:02:18]} 33. Bf3 {[%emt 0:01:14]} Rb1 {[%emt 0:01:56]} 34. Qd3+ {[%emt 0:00:28]} g6 {[%emt 0:00:07]} 35. Qd8 {[%emt 0:00:34]} Qe5+ {[%emt 0:00:56]} 36. g3 {[%emt 0:00:33]} g5 {[%emt 0:00:37]} 37. Qd3+ {[%emt 0:00:44]} Qf5 {[%emt 0:00:01]} 38. Qxf5+ {[%emt 0:00:09]} exf5 {[%emt 0:00:03]} 39. c5 {[%emt 0:00:27]} Nd7 {[%emt 0:00:30]} 40. c6 {[%emt 0:00:00]} Ne5 {[%emt 0:00:00]} 41. Bd5 {[%emt 0:04:43]} Rc1 {[%emt 0:01:02]} 42. Re8 {[%emt 0:01:53]} Nd3 {[%emt 0:01:57]} 43. Re7 {[%emt 0:03:05]} Nxf2 {[%emt 0:06:30]} 44. Bxf7 {[%emt 0:07:26]} Kg7 {[%emt 0:03:57]} 45. Bb3+ {[%emt 0:01:24]} Kf6 {[%emt 0:00:55]} 46. Re6+ {[%emt 0:01:06]} Kg7 {[%emt 0:00:09]} 47. a5 {[%emt 0:00:42]} f4 {[%emt 0:11:27]} 48. gxf4 {[%emt 0:01:08]} gxf4 {[%emt 0:00:02]} 49. Kg2 {[%emt 0:02:43]} Nd3 {[%emt 0:01:33]} 50. a6 {[%emt 0:01:21]} f3+ {[%emt 0:08:04]} 51. Kxf3 {[%emt 0:00:14]} Rxc6 {[%emt 0:00:08]} 52. a7 {[%emt 0:01:18]} Rc8 {[%emt 0:00:34]} 53. Bd5 {[%emt 0:00:22]} Rf8+ {[%emt 0:01:19]} 54. Ke3 {[%emt 0:00:25]} Nf4 {[%emt 0:00:57]} 55. Re7+ {[%emt 0:00:18]} Kf6 {[%emt 0:00:37]} 56. Rf7+ {[%emt 0:00:23]} Rxf7 {[%emt 0:00:22]} 57. Bxf7 {[%emt 0:00:05]} 1-0

[Event "5th EKA IIFL Investment 2019"]
[Site "Mumbai"]
[Date "2020.01.06"]
[Round "8.44"]
[White "Sahoo, Utkal Ranjan"]
[Black "Gandhi, Anish"]
[Result "1-0"]
[ECO "A50"]
[WhiteElo "2329"]
[BlackElo "2168"]
[Annotator "ChessBase"]
[PlyCount "63"]
[EventDate "2019.12.30"]
[EventType "swiss"]
[EventCountry "IND"]
[SourceTitle "playchess.com"]
[Source "ChessBase"]
[SourceQuality "1"]
[TimeControl "40/5400+30:1800+30"]

1. d4 Nf6 2. c4 g6 3. f3 c5 4. d5 d6 5. e4 Bg7 6. Nc3 O-O 7. Bg5 h6 8. Be3 Nbd7 9. Nh3 Ne5 10. Nf2 h5 11. Be2 e6 12. O-O exd5 13. cxd5 a6 14. a4 Rb8 15. h3 Re8 16. Qd2 Qc7 17. Rfc1 b6 18. Rab1 c4 19. b4 b5 20. axb5 axb5 21. Ra1 Bd7 22. f4 Nd3 23. Nxd3 cxd3 24. Bxd3 Qd8 25. Bd4 Ng4 26. Bxg7 Qb6+ 27. Kf1 Ne3+ 28. Ke2 Nxg2 29. Bf6 Bxh3 30. Kf3 g5 31. Bxg5 Rbc8 32. Kg3 1-0

[Event "5th EKA IIFL Investment 2019"]
[Site "Mumbai"]
[Date "2020.01.06"]
[Round "8.45"]
[White "Samant Aditya S"]
[Black "Manish Kumar (2006)"]
[Result "1-0"]
[ECO "B39"]
[WhiteElo "2296"]
[BlackElo "2168"]
[Annotator "ChessBase"]
[PlyCount "87"]
[EventDate "2019.12.30"]
[EventType "swiss"]
[EventCountry "IND"]
[SourceTitle "playchess.com"]
[Source "ChessBase"]
[SourceQuality "1"]
[TimeControl "40/5400+30:1800+30"]

1. e4 {[%emt 0:00:00]} c5 {[%emt 0:00:22]} 2. Nf3 {[%emt 0:00:00]} g6 {[%emt 0:00:03]} 3. d4 {[%emt 0:00:00]} cxd4 {[%emt 0:00:01]} 4. Nxd4 {[%emt 0:00:00]} Nc6 {[%emt 0:00:04]} 5. c4 {[%emt 0:01:04]} Bg7 {[%emt 0:00:05]} 6. Be3 {[%emt 0:00:07]} Nf6 {[%emt 0:00:05]} 7. Nc3 {[%emt 0:00:07]} Ng4 {[%emt 0:00:21]} 8. Qxg4 {[%emt 0:00:10]} Nxd4 {[%emt 0:00:02]} 9. Qd1 {[%emt 0:00:30]} Ne6 {[%emt 0:00:38]} 10. Qd2 {[%emt 0:01:02]} b6 {[%emt 0:02:51]} 11. Be2 {[%emt 0:00:56]} Bb7 {[%emt 0:00:33]} 12. O-O {[%emt 0:01:09]} O-O {[%emt 0:12:31]} 13. f3 {[%emt 0:01:32]} Bc6 {[%emt 0:03:22]} 14. Rac1 {[%emt 0:01:52]} a5 {[%emt 0:07:14]} 15. b3 {[%emt 0:00:58]} Nc5 {[%emt 0:01:20]} 16. Rfd1 {[%emt 0:04:21]} f5 {[%emt 0:11:52]} 17. exf5 {[%emt 0:01:19]} Rxf5 {[%emt 0:01:16]} 18. Bd3 {[%emt 0:11:32]} Nxd3 {[%emt 0:18:30]} 19. Qxd3 {[%emt 0:00:46]} Qb8 {[%emt 0:11:32]} 20. Ne2 {[%emt 0:21:47]} b5 {[%emt 0:16:53]} 21. c5 {[%emt 0:13:19]} Qb7 {[%emt 0:04:55]} 22. Nd4 {[%emt 0:04:03]} Rd5 {[%emt 0:01:20]} 23. Qe2 {[%emt 0:00:57]} Rd8 {[%emt 0:00:32]} 24. Bf2 {[%emt 0:03:32]} e5 {[%emt 0:01:26]} 25. Bh4 {[%emt 0:07:20]} Rc8 {[%emt 0:02:30]} 26. Nxc6 {[%emt 0:00:35]} dxc6 {[%emt 0:00:09]} 27. Rxd5 {[%emt 0:04:15]} cxd5 {[%emt 0:00:00]} 28. Bg3 {[%emt 0:06:09]} e4 {[%emt 0:02:51]} 29. fxe4 {[%emt 0:00:30]} dxe4 {[%emt 0:00:12]} 30. Bf2 {[%emt 0:00:41]} Qc6 {[%emt 0:00:49]} 31. a4 {[%emt 0:00:39]} bxa4 {[%emt 0:00:35]} 32. Qc4+ {[%emt 0:00:08]} Kh8 {[%emt 0:00:05]} 33. bxa4 {[%emt 0:00:30]} Rd8 {[%emt 0:00:45]} 34. Qb5 {[%emt 0:01:00]} Qe6 {[%emt 0:00:09]} 35. Qb6 {[%emt 0:07:27]} Qe8 {[%emt 0:00:59]} 36. c6 {[%emt 0:01:36]} Rb8 {[%emt 0:00:30]} 37. Qc5 {[%emt 0:04:09]} Rc8 {[%emt 0:00:26]} 38. c7 {[%emt 0:00:20]} Qxa4 {[%emt 0:00:36]} 39. Qe7 {[%emt 0:01:42]} Bf8 {[%emt 0:00:34]} 40. Qf6+ {[%emt 0:00:00]} Bg7 {[%emt 0:00:00]} 41. Qd8+ {[%emt 0:00:37]} Bf8 {[%emt 0:02:07]} 42. Qxc8 {[%emt 0:00:31]} Qa3 {[%emt 0:00:05]} 43. Bd4+ {[%emt 0:00:09]} Kg8 {[%emt 0:00:13]} 44. Qe6# {[%emt 0:00:07]} 1-0

[Event "5th EKA IIFL Investment 2019"]
[Site "Mumbai"]
[Date "2020.01.06"]
[Round "8.47"]
[White "Mohite, Ranveer"]
[Black "Pandey Srishti"]
[Result "1-0"]
[ECO "C12"]
[WhiteElo "2281"]
[BlackElo "2162"]
[Annotator "RC"]
[PlyCount "124"]
[EventDate "2019.12.30"]
[EventType "swiss"]
[EventCountry "IND"]
[SourceTitle "playchess.com"]
[Source "ChessBase"]
[SourceQuality "1"]
[TimeControl "40/5400+30:1800+30"]

1. e4 e6 2. d4 d5 3. Nc3 Nf6 4. Bg5 Bb4 5. exd5 Qxd5 6. Bxf6 Bxc3+ 7. bxc3 gxf6 8. Qd2 Bd7 9. c4 Qe4+ 10. Ne2 c5 11. f3 Qg6 12. O-O-O Na6 13. Nc3 cxd4 14. Qxd4 O-O-O 15. Qxa7 Qg5+ 16. Kb2 Qa5 17. a3 Bc6 18. Bd3 Qg5 19. Nb5 Qc5 20. Qxc5 Nxc5 21. Be2 Bxb5 22. cxb5 Kc7 23. g3 b6 24. Rxd8 Rxd8 25. Rd1 Na4+ 26. Kb3 Nc5+ 27. Kc3 Ra8 28. Ra1 f5 29. Bc4 h5 30. Bb3 h4 31. Kb4 Rd8 32. Kc3 Rg8 33. Rg1 f4 34. g4 Rg5 35. Bc4 Re5 36. Rf1 Re3+ 37. Kb4 Nd7 38. Rf2 Ne5 39. Be2 Nd7 40. a4 Nf6 41. Bc4 Nd7 42. a5 bxa5+ 43. Kxa5 Ra3+ 44. Kb4 Re3 45. Bd3 Kb6 46. g5 Nc5 47. Bc4 Re1 48. g6 Rb1+ 49. Kc3 fxg6 50. Rg2 Re1 51. Rxg6 Re3+ 52. Kb4 Rxf3 53. Bxe6 Nxe6 54. Rxe6+ Kb7 55. c4 Rf2 56. Re7+ Kc8 57. h3 f3 58. Rf7 Rf1 59. Kc5 Kd8 60. b6 f2 61. b7 Rb1 62. Kc6 Ke8 1-0